fUST/lending_fUST_20240120
["ID","MTS","AMOUNT","RATE_DAILY","PERIOD"]
[312267362,1705726241285,-500.0,0.00032876,2]
[312267363,1705726241393,-2185.48,0.00032876,2]
[312267364,1705726241405,-500.0,0.00032876,2]
[312267365,1705726241415,-500.0,0.00032876,2]
[312267366,1705726241424,-500.0,0.00032876,2]
[312267367,1705726241433,-2173.45,0.00032876,2]
[312267368,1705726241442,-501.20567299,0.00032876,2]
[312267369,1705726241451,-500.0,0.00032876,2]
[312267370,1705726241460,-500.0,0.00032876,2]
[312267371,1705726241470,-500.0,0.00032876,2]
[312267372,1705726241479,-1814.69,0.00032876,2]
[312267373,1705726241488,-6763.78500734,0.00033,4]
[312267374,1705726241498,-159.249814,0.00033014,2]
[312267375,1705726241508,-500.0,0.0003315,3]
[312267376,1705726241516,-500.0,0.0003315,3]
[312267377,1705726241527,-500.0,0.0003315,3]
[312267378,1705726241536,-500.0,0.0003315,3]
[312267379,1705726241545,-500.0,0.0003315,14]
[312267380,1705726241555,-500.0,0.0003315,3]
[312267381,1705726241565,-500.0,0.0003315,3]
[312267382,1705726241576,-1412.02,0.0003315,3]
[312267383,1705726241585,-3939.01,0.0003315,3]
[312267384,1705726241594,-545.22843941,0.0003315,3]
[312267385,1705726241603,-500.0,0.0003315,3]
[312267386,1705726241613,-500.0,0.0003315,3]
[312267387,1705726241622,-500.0,0.0003315,3]
[312267388,1705726241633,-8226.73,0.0003315,3]
[312267389,1705726241644,-500.0,0.0003315,3]
[312267390,1705726241654,-500.0,0.0003315,3]
[312267391,1705726241663,-379.32935967,0.0003315,3]
[312267392,1705726241672,-500.0,0.0003315,3]
[312267393,1705726241682,-500.0,0.0003315,3]
[312267394,1705726241692,-835.26,0.0003315,3]
[312267395,1705726241701,-500.0,0.0003315,3]
[312267396,1705726241710,-500.0,0.0003315,3]
[312267397,1705726241719,-1893.43,0.0003315,3]
[312267398,1705726241729,-1192.22,0.0003315,3]
[312267399,1705726241738,-500.0,0.0003315,3]
[312267400,1705726241750,-191.14075623,0.0003315,3]
[312267401,1705726241761,-500.0,0.0003315,3]
[312267402,1705726241771,-12284.94,0.0003315,3]
[312267403,1705726241782,-500.0,0.0003315,3]
[312267404,1705726241792,-610.35,0.0003315,3]
[312267405,1705726241801,-500.0,0.0003315,3]
[312267406,1705726241811,-1906.47,0.0003315,3]
[312267407,1705726241822,-500.0,0.0003315,3]
[312267408,1705726241832,-500.0,0.0003315,3]
[312267409,1705726241841,-500.0,0.0003315,3]
[312267410,1705726241850,-500.0,0.0003315,3]
[312267411,1705726241861,-1432.36,0.0003315,3]
[312267412,1705726241870,-1216.82,0.0003315,3]
[312267413,1705726241879,-3902.91,0.0003315,3]
[312267414,1705726241888,-500.0,0.0003315,3]
[312267415,1705726241898,-500.0,0.0003315,3]
[312267416,1705726241907,-500.0,0.0003315,3]
[312267417,1705726241916,-500.0,0.0003315,3]
[312267418,1705726241925,-500.0,0.0003315,3]
[312267419,1705726241934,-500.0,0.0003315,3]
[312267420,1705726241943,-200.0,0.0003315,3]
[312267421,1705726241952,-500.0,0.0003315,3]
[312267422,1705726241961,-500.0,0.0003315,3]
[312267423,1705726241970,-500.0,0.0003315,3]
[312267424,1705726241979,-1673.72,0.0003315,3]
[312267425,1705726241988,-500.0,0.0003315,3]
[312267426,1705726241997,-500.0,0.0003315,3]
[312267427,1705726242006,-500.0,0.0003315,3]
[312267428,1705726242015,-576.57755989,0.0003315,3]
[312267429,1705726242024,-7627.9,0.0003315,3]
[312267430,1705726242033,-787.15,0.0003315,3]
[312267431,1705726242043,-500.0,0.0003315,3]
[312267432,1705726242052,-616.23,0.0003315,3]
[312267433,1705726242061,-325.31452666,0.0003315,3]
[312267434,1705726242072,-500.0,0.0003315,3]
[312267435,1705726242082,-359.32940858,0.0003315,3]
[312267436,1705726242091,-500.0,0.0003315,3]
[312267437,1705726242100,-9441.25,0.0003315,3]
[312267438,1705726242109,-500.0,0.0003315,3]
[312267439,1705726242118,-500.0,0.0003315,3]
[312267440,1705726242127,-500.0,0.0003315,3]
[312267441,1705726242136,-500.0,0.0003315,3]
[312267442,1705726242145,-570.66,0.0003315,2]
[312267443,1705726242154,-500.0,0.0003315,3]
[312267444,1705726242163,-2185.48,0.0003315,3]
[312267445,1705726242172,-500.0,0.0003315,3]
[312267446,1705726242181,-500.0,0.0003315,2]
[312267447,1705726242191,-500.0,0.0003315,3]
[312267448,1705726242200,-2173.45,0.0003315,3]
[312267449,1705726242210,-500.0,0.0003315,3]
[312267450,1705726242219,-500.0,0.0003315,3]
[312267451,1705726242228,-500.0,0.0003315,3]
[312267452,1705726242237,-1814.69,0.0003315,3]
[312267453,1705726242246,-200.0,0.000332,4]
[312267454,1705726242255,-500.0,0.00033424,3]
[312267455,1705726242264,-500.0,0.00033424,3]
[312267456,1705726242273,-500.0,0.00033424,3]
[312267457,1705726242282,-500.0,0.00033424,3]
[312267458,1705726242292,-500.0,0.00033424,14]
[312267459,1705726242302,-500.0,0.00033424,3]
[312267460,1705726242312,-500.0,0.00033424,3]
[312267462,1705726242322,-1412.02,0.00033424,3]
[312267464,1705726242333,-3939.01,0.00033424,3]
[312267465,1705726242342,-500.0,0.00033424,3]
[312267466,1705726242351,-500.0,0.00033424,3]
[312267467,1705726242360,-500.0,0.00033424,3]
[312267468,1705726242370,-8226.73,0.00033424,3]
[312267470,1705726242379,-500.0,0.00033424,3]
[312267472,1705726242388,-375.79416573,0.00033424,3]
[312267474,1705726242398,-500.0,0.00033424,3]
[312267476,1705726242407,-500.0,0.00033424,3]
[312267478,1705726242416,-835.26,0.00033424,3]
[312267480,1705726242425,-500.0,0.00033424,3]
[312267483,1705726242435,-500.0,0.00033424,3]
[312267484,1705726242444,-1893.43,0.00033424,3]
[312267485,1705726242453,-1192.22,0.00033424,3]
[312267486,1705726242462,-500.0,0.00033424,3]
[312267487,1705726242471,-500.0,0.00033424,3]
[312267488,1705726242481,-12284.94,0.00033424,3]
[312267489,1705726242491,-508.6613999,0.00033424,3]
[312267490,1705726242500,-610.35,0.00033424,3]
[312267491,1705726242509,-500.0,0.00033424,3]
[312267492,1705726242519,-1906.47,0.00033424,3]
[312267493,1705726242528,-269.72489054,0.00033424,3]
[312267494,1705726242537,-500.0,0.00033424,3]
[312267495,1705726242546,-500.0,0.00033424,3]
[312267496,1705726242555,-500.0,0.00033424,3]
[312267497,1705726242564,-1432.36,0.00033424,3]
[312267498,1705726242574,-1216.82,0.00033424,3]
[312267499,1705726242583,-3902.91,0.00033424,3]
[312267501,1705726242593,-500.0,0.00033424,3]
[312267503,1705726242602,-500.0,0.00033424,3]
[312267505,1705726242611,-500.0,0.00033424,3]
[312267507,1705726242620,-500.0,0.00033424,3]
[312267509,1705726242629,-500.0,0.00033424,3]
[312267511,1705726242638,-500.0,0.00033424,3]
[312267512,1705726242647,-200.0,0.00033424,3]
[312267513,1705726242656,-500.0,0.00033424,3]
[312267514,1705726242665,-500.0,0.00033424,3]
[312267515,1705726242674,-500.0,0.00033424,3]
[312267516,1705726242683,-1673.72,0.00033424,3]
[312267518,1705726242692,-500.0,0.00033424,3]
[312267520,1705726242701,-500.0,0.00033424,3]
[312267521,1705726242711,-500.0,0.00033424,3]
[312267523,1705726242720,-7627.9,0.00033424,3]
[312267525,1705726242729,-500.0,0.00033424,3]
[312267527,1705726242738,-787.15,0.00033424,3]
[312267529,1705726242747,-616.23,0.00033424,3]
[312267531,1705726242757,-500.0,0.00033424,3]
[312267533,1705726242766,-500.0,0.00033424,3]
[312267535,1705726242775,-9441.25,0.00033424,3]
[312267537,1705726242784,-500.0,0.00033424,3]
[312267539,1705726242793,-500.0,0.00033424,3]
[312267541,1705726242803,-500.0,0.00033424,3]
[312267543,1705726242812,-570.66,0.00033424,2]
[312267545,1705726242822,-500.0,0.00033424,3]
[312267547,1705726242831,-500.0,0.00033424,3]
[312267549,1705726242839,-2185.48,0.00033424,3]
[312267551,1705726242848,-500.0,0.00033424,3]
[312267553,1705726242857,-500.0,0.00033424,2]
[312267554,1705726242866,-500.0,0.00033424,3]
[312267556,1705726242876,-2173.45,0.00033424,3]
[312267558,1705726242884,-500.0,0.00033424,3]
[312267560,1705726242894,-503.61348739,0.00033424,3]
[312267561,1705726242903,-500.0,0.00033424,3]
[312267563,1705726242912,-1814.69,0.00033424,3]
[312267565,1705726242921,-500.0,0.00033698,3]
[312267567,1705726242930,-500.0,0.00033698,3]
[312267569,1705726242939,-609.27524186,0.00033698,3]
[312267571,1705726242948,-500.0,0.00033698,3]
[312267573,1705726242958,-500.0,0.00033698,3]
[312267575,1705726242967,-500.89131849,0.00033698,3]
[312267577,1705726242976,-500.0,0.00033698,14]
[312267579,1705726242985,-1412.02,0.00033698,3]
[312267581,1705726242994,-3939.01,0.00033698,3]
[312267583,1705726243003,-500.0,0.00033698,3]
[312267585,1705726243012,-172.82406398,0.00033698,3]
[312267587,1705726243021,-500.0,0.00033698,3]
[312267589,1705726243030,-8226.73,0.00033698,3]
[312267591,1705726243039,-500.0,0.00033698,3]
[312267593,1705726243048,-504.13047103,0.00033698,3]
[312267595,1705726243060,-500.0,0.00033698,3]
[312267597,1705726243069,-835.26,0.00033698,3]
[312267599,1705726243078,-500.0,0.00033698,3]
[312267601,1705726243088,-500.0,0.00033698,3]
[312267603,1705726243097,-1893.43,0.00033698,3]
[312267604,1705726243106,-1192.22,0.00033698,3]
[312267606,1705726243115,-500.0,0.00033698,3]
[312267608,1705726243125,-500.0,0.00033698,3]
[312267610,1705726243134,-12284.94,0.00033698,3]
[312267612,1705726243143,-610.35,0.00033698,3]
[312267613,1705726243152,-500.0,0.00033698,3]
[312267615,1705726243162,-1906.47,0.00033698,3]
[312267617,1705726243171,-500.0,0.00033698,3]
[312267619,1705726243181,-500.0,0.00033698,3]
[312267621,1705726243190,-500.0,0.00033698,3]
[312267623,1705726243200,-1432.36,0.00033698,3]
[312267625,1705726243210,-1216.82,0.00033698,3]
[312267627,1705726243220,-3902.91,0.00033698,3]
[312267629,1705726243229,-500.0,0.00033698,3]
[312267631,1705726243239,-500.0,0.00033698,3]
[312267633,1705726243249,-500.0,0.00033698,3]
[312267635,1705726243259,-500.0,0.00033698,3]
[312267637,1705726243268,-500.0,0.00033698,3]
[312267639,1705726243278,-500.0,0.00033698,3]
[312267641,1705726243287,-238.12716291,0.00033698,3]
[312267643,1705726243296,-500.0,0.00033698,3]
[312267645,1705726243306,-500.0,0.00033698,3]
[312267647,1705726243315,-500.0,0.00033698,3]
[312267649,1705726243329,-1673.72,0.00033698,3]
[312267650,1705726243339,-511.95301418,0.00033698,3]
[312267652,1705726243348,-500.0,0.00033698,3]
[312267654,1705726243357,-500.0,0.00033698,3]
[312267656,1705726243367,-7627.9,0.00033698,3]
[312267658,1705726243375,-500.0,0.00033698,3]
[312267660,1705726243384,-616.23,0.00033698,3]
[312267662,1705726243393,-787.15,0.00033698,3]
[312267664,1705726243403,-500.0,0.00033698,3]
[312267665,1705726243412,-500.0,0.00033698,3]
[312267667,1705726243423,-9441.25,0.00033698,3]
[312267679,1705726243528,-500.0,0.00033698,3]
[312267681,1705726243537,-500.0,0.00033698,3]
[312267683,1705726243547,-593.17490822,0.00033698,3]
[312267685,1705726243556,-570.66,0.00033698,2]
[312267687,1705726243565,-500.0,0.00033698,3]
[312267689,1705726243576,-500.0,0.00033698,3]
[312267691,1705726243586,-2185.48,0.00033698,3]
[312267693,1705726243594,-500.0,0.00033698,3]
[312267695,1705726243604,-500.0,0.00033698,2]
[312267697,1705726243613,-500.0,0.00033698,3]
[312267699,1705726243622,-2173.45,0.00033698,3]
[312267701,1705726243631,-500.0,0.00033698,3]
[312267703,1705726243640,-500.0,0.00033698,3]
[312267705,1705726243649,-1814.69,0.00033698,3]
[312267707,1705726243658,-500.0,0.00033972,3]
[312267708,1705726243668,-500.0,0.00033972,3]
[312267710,1705726243677,-500.0,0.00033972,3]
[312267712,1705726243686,-500.0,0.00033972,14]
[312267714,1705726243695,-500.0,0.00033972,3]
[312267716,1705726243705,-1412.02,0.00033972,3]
[312267718,1705726243714,-3939.01,0.00033972,3]
[312267720,1705726243722,-500.0,0.00033972,3]
[312267722,1705726243731,-500.0,0.00033972,3]
[312267724,1705726243740,-8226.73,0.00033972,3]
[312267726,1705726243749,-500.0,0.00033972,3]
[312267728,1705726243758,-500.0,0.00033972,3]
[312267729,1705726243767,-500.0,0.00033972,3]
[312267731,1705726243776,-835.26,0.00033972,3]
[312267733,1705726243785,-500.0,0.00033972,3]
[312267735,1705726243794,-1893.43,0.00033972,3]
[312267737,1705726243803,-1192.22,0.00033972,3]
[312267739,1705726243812,-500.0,0.00033972,3]
[312267741,1705726243821,-500.0,0.00033972,3]
[312267743,1705726243830,-12284.94,0.00033972,3]
[312267745,1705726243839,-610.35,0.00033972,3]
[312267747,1705726243848,-500.0,0.00033972,3]
[312267749,1705726243857,-1906.47,0.00033972,3]
[312267751,1705726243866,-378.39675862,0.00033972,3]
[312267752,1705726243875,-500.0,0.00033972,3]
[312267753,1705726243884,-500.0,0.00033972,3]
[312267754,1705726243893,-1432.36,0.00033972,3]
[312267756,1705726243902,-1216.82,0.00033972,3]
[312267758,1705726243911,-3902.91,0.00033972,3]
[312267760,1705726243920,-500.0,0.00033972,3]
[312267762,1705726243929,-500.0,0.00033972,3]
[312267764,1705726243938,-500.0,0.00033972,3]
[312267766,1705726243949,-228.75107497,0.00033972,3]
[312267768,1705726243958,-274.18080315,0.00033972,3]
[312267770,1705726243967,-500.0,0.00033972,3]
[312267772,1705726243976,-500.0,0.00033972,3]
[312267774,1705726243986,-500.0,0.00033972,3]
[312267776,1705726243995,-500.0,0.00033972,3]
[312267778,1705726244004,-1673.72,0.00033972,3]
[312267780,1705726244013,-500.0,0.00033972,3]
[312267782,1705726244022,-500.0,0.00033972,3]
[312267784,1705726244031,-7627.9,0.00033972,3]
[312267786,1705726244040,-500.0,0.00033972,3]
[312267788,1705726244049,-787.15,0.00033972,3]
[312267790,1705726244058,-616.23,0.00033972,3]
[312267791,1705726244068,-500.0,0.00033972,3]
[312267792,1705726244078,-500.0,0.00033972,3]
[312267793,1705726244087,-9441.25,0.00033972,3]
[312267794,1705726244096,-476.46244924,0.00033972,3]
[312267795,1705726244106,-500.0,0.00033972,3]
[312267796,1705726244115,-570.66,0.00033972,2]
[312267797,1705726244124,-500.0,0.00033972,3]
[312267798,1705726244133,-500.0,0.00033972,3]
[312267799,1705726244143,-2185.48,0.00033972,3]
[312267800,1705726244152,-500.0,0.00033972,3]
[312267801,1705726244161,-500.0,0.00033972,2]
[312267802,1705726244170,-500.0,0.00033972,3]
[312267803,1705726244179,-2173.45,0.00033972,3]
[312267804,1705726244188,-500.0,0.00033972,3]
[312267805,1705726244197,-202.50262318,0.00033972,3]
[312267806,1705726244206,-1814.69,0.00033972,3]
[312267807,1705726244215,-208.42196376,0.00033979,7]
[312267808,1705726244226,-187.17462113,0.00033979,7]
[312267809,1705726244234,-262.67431009,0.00033979,7]
[312267810,1705726244243,-156.00023255,0.00033979,7]
[312267811,1705726244252,-160.0,0.00034036,3]
[312267812,1705726244262,-500.0,0.00034246,7]
[312267813,1705726244271,-500.0,0.00034246,3]
[312267814,1705726244281,-500.0,0.00034246,3]
[312267815,1705726244290,-500.0,0.00034246,3]
[312267816,1705726244299,-500.0,0.00034246,14]
[312267817,1705726244308,-500.0,0.00034246,3]
[312267818,1705726244320,-1412.02,0.00034246,3]
[312267820,1705726244333,-3939.01,0.00034246,3]
[312267822,1705726244342,-500.0,0.00034246,3]
[312267824,1705726244351,-500.0,0.00034246,3]
[312267826,1705726244360,-8226.73,0.00034246,3]
[312267828,1705726244370,-500.0,0.00034246,3]
[312267830,1705726244379,-500.0,0.00034246,3]
[312267832,1705726244389,-500.0,0.00034246,3]
[312267834,1705726244398,-835.26,0.00034246,3]
[312267836,1705726244408,-500.0,0.00034246,3]
[312267838,1705726244417,-1893.43,0.00034246,3]
[312267840,1705726244426,-1192.22,0.00034246,3]
[312267842,1705726244435,-502.62737709,0.00034246,3]
[312267844,1705726244444,-500.0,0.00034246,3]
[312267846,1705726244453,-12284.94,0.00034246,3]
[312267848,1705726244463,-610.35,0.00034246,3]
[312267850,1705726244472,-501.23704179,0.00034246,3]
[312267852,1705726244480,-1906.47,0.00034246,3]
[312267854,1705726244491,-587.54265635,0.00034246,3]
[312267856,1705726244500,-500.0,0.00034246,3]
[312267858,1705726244509,-1432.36,0.00034246,3]
[312267860,1705726244518,-1216.82,0.00034246,3]
[312267862,1705726244527,-3902.91,0.00034246,3]
[312267864,1705726244536,-500.0,0.00034246,3]
[312267866,1705726244545,-500.0,0.00034246,3]
[312267868,1705726244554,-500.0,0.00034246,3]
[312267870,1705726244563,-500.0,0.00034246,3]
[312267872,1705726244573,-500.0,0.00034246,3]
[312267874,1705726244583,-500.0,0.00034246,3]
[312267876,1705726244592,-500.0,0.00034246,3]
[312267878,1705726244601,-1673.72,0.00034246,3]
[312267880,1705726244610,-500.0,0.00034246,3]
[312267882,1705726244618,-500.0,0.00034246,3]
[312267884,1705726244627,-7627.9,0.00034246,3]
[312267886,1705726244636,-500.0,0.00034246,3]
[312267888,1705726244645,-787.15,0.00034246,3]
[312267890,1705726244654,-616.23,0.00034246,3]
[312267892,1705726244663,-500.0,0.00034246,3]
[312267894,1705726244672,-500.0,0.00034246,3]
[312267896,1705726244681,-9441.25,0.00034246,3]
[312267898,1705726244690,-500.0,0.00034246,3]
[312267900,1705726244699,-570.66,0.00034246,2]
[312267902,1705726244708,-493.48617889,0.00034246,3]
[312267904,1705726244717,-500.0,0.00034246,3]
[312267906,1705726244726,-2185.48,0.00034246,3]
[312267908,1705726244734,-500.0,0.00034246,3]
[312267910,1705726244743,-500.0,0.00034246,2]
[312267911,1705726244753,-512.07583783,0.00034246,3]
[312267914,1705726244762,-2173.45,0.00034246,3]
[312267915,1705726244771,-500.0,0.00034246,3]
[312267917,1705726244779,-1814.69,0.00034246,3]
[312267920,1705726244792,-160.0,0.00034384,4]
[312267922,1705726244800,-500.0,0.00034474,2]
[312267923,1705726244809,-500.0,0.00034474,2]
[312267925,1705726244818,-500.0,0.00034474,2]
[312267927,1705726244828,-500.0,0.00034474,2]
[312267929,1705726244837,-500.0,0.00034474,2]
[312267932,1705726244847,-500.0,0.0003452,3]
[312267933,1705726244856,-500.0,0.0003452,3]
[312267935,1705726244865,-500.0,0.0003452,3]
[312267938,1705726244874,-500.0,0.0003452,14]
[312267939,1705726244883,-500.0,0.0003452,3]
[312267941,1705726244893,-3939.01,0.0003452,3]
[312267943,1705726244902,-1412.02,0.0003452,3]
[312267945,1705726244911,-500.0,0.0003452,3]
[312267948,1705726244921,-441.7752553,0.0003452,3]
[312267950,1705726244930,-8226.73,0.0003452,3]
[312267951,1705726244939,-500.0,0.0003452,3]
[312267953,1705726244948,-500.0,0.0003452,3]
[312267955,1705726244957,-500.0,0.0003452,3]
[312267958,1705726244966,-835.26,0.0003452,3]
[312267959,1705726244976,-500.0,0.0003452,3]
[312267961,1705726244985,-1893.43,0.0003452,3]
[312267963,1705726244994,-1192.22,0.0003452,3]
[312267965,1705726245004,-202.42432868,0.0003452,3]
[312267967,1705726245013,-12284.94,0.0003452,3]
[312267969,1705726245022,-610.35,0.0003452,3]
[312267970,1705726245031,-1906.47,0.0003452,3]
[312267972,1705726245041,-500.0,0.0003452,3]
[312267974,1705726245050,-1432.36,0.0003452,3]
[312267976,1705726245059,-1216.82,0.0003452,3]
[312267978,1705726245069,-3902.91,0.0003452,3]
[312267980,1705726245078,-500.0,0.0003452,3]
[312267982,1705726245087,-500.0,0.0003452,3]
[312267984,1705726245096,-500.0,0.0003452,3]
[312267985,1705726245106,-500.0,0.0003452,3]
[312267986,1705726245115,-500.0,0.0003452,3]
[312267987,1705726245125,-500.0,0.0003452,3]
[312267988,1705726245134,-500.0,0.0003452,3]
[312267989,1705726245143,-1673.72,0.0003452,3]
[312267990,1705726245152,-500.0,0.0003452,3]
[312267991,1705726245161,-500.0,0.0003452,3]
[312267992,1705726245171,-500.0,0.0003452,3]
[312267993,1705726245180,-7627.9,0.0003452,3]
[312267994,1705726245189,-787.15,0.0003452,3]
[312267995,1705726245199,-616.23,0.0003452,3]
[312267996,1705726245208,-500.0,0.0003452,3]
[312267997,1705726245217,-500.0,0.0003452,3]
[312267998,1705726245226,-9441.25,0.0003452,3]
[312267999,1705726245235,-500.0,0.0003452,3]
[312268000,1705726245245,-570.66,0.0003452,2]
[312268001,1705726245254,-500.0,0.0003452,3]
[312268002,1705726245263,-2185.48,0.0003452,3]
[312268003,1705726245273,-500.0,0.0003452,3]
[312268004,1705726245282,-500.0,0.0003452,2]
[312268005,1705726245291,-2173.45,0.0003452,3]
[312268006,1705726245301,-500.0,0.0003452,3]
[312268007,1705726245310,-1814.69,0.0003452,3]
[312268008,1705726245320,-160.0,0.00034732,5]
[312268009,1705726245332,-500.0,0.00034794,3]
[312268010,1705726245341,-500.0,0.00034794,3]
[312268011,1705726245351,-500.0,0.00034794,3]
[312268012,1705726245360,-500.0,0.00034794,14]
[312268013,1705726245462,-500.0,0.00034794,3]
[312268014,1705726245472,-3939.01,0.00034794,3]
[312268015,1705726245482,-1412.02,0.00034794,3]
[312268016,1705726245491,-500.0,0.00034794,3]
[312268017,1705726245501,-8226.73,0.00034794,3]
[312268018,1705726245510,-500.0,0.00034794,3]
[312268019,1705726245520,-500.0,0.00034794,3]
[312268020,1705726245529,-500.0,0.00034794,3]
[312268021,1705726245539,-835.26,0.00034794,3]
[312268022,1705726245548,-500.0,0.00034794,3]
[312268023,1705726245559,-1893.43,0.00034794,3]
[312268024,1705726245569,-1192.22,0.00034794,3]
[312268025,1705726245578,-12284.94,0.00034794,3]
[312268026,1705726245588,-610.35,0.00034794,3]
[312268027,1705726245598,-1906.47,0.00034794,3]
[312268028,1705726245607,-500.0,0.00034794,3]
[312268029,1705726245616,-1432.36,0.00034794,3]
[312268030,1705726245625,-1216.82,0.00034794,3]
[312268031,1705726245634,-3902.91,0.00034794,3]
[312268032,1705726245644,-500.0,0.00034794,3]
[312268033,1705726245654,-500.0,0.00034794,3]
[312268034,1705726245663,-500.0,0.00034794,3]
[312268035,1705726245673,-500.0,0.00034794,3]
[312268036,1705726245683,-500.0,0.00034794,3]
[312268037,1705726245692,-500.0,0.00034794,3]
[312268038,1705726245701,-500.0,0.00034794,3]
[312268039,1705726245710,-1673.72,0.00034794,3]
[312268040,1705726245719,-500.0,0.00034794,3]
[312268041,1705726245729,-500.0,0.00034794,3]
[312268042,1705726245738,-500.0,0.00034794,3]
[312268043,1705726245747,-6243.72375677,0.00034794,3]
[312268044,1705726245797,-1384.17624323,0.00034794,3]
[312268045,1705726245806,-616.23,0.00034794,3]
[312268046,1705726245815,-787.15,0.00034794,3]
[312268047,1705726245825,-500.0,0.00034794,3]
[312268048,1705726245834,-500.0,0.00034794,3]
[312268049,1705726245843,-6415.29327965,0.00034794,3]
[312268050,1705726246002,154.73694719,0.00014755,2]
[312268058,1705726266575,154.73694719,0.00014755,2]
[312268059,1705726282571,154.73694719,0.00014755,2]
[312268060,1705726300599,154.73694719,0.00014755,2]
[312268061,1705726316581,154.73694719,0.00014754,2]
[312268062,1705726334582,154.73694719,0.00014754,2]
[312268063,1705726354592,154.73694719,0.00014753,2]
[312268064,1705726372580,154.73694719,0.00014753,2]
[312268066,1705726390593,154.73694719,0.00014747,2]
[312268067,1705726408589,154.73694719,0.00014746,2]
[312268069,1705726428582,154.73694719,0.00014746,2]
[312268070,1705726448591,154.73694719,0.00014746,2]
[312268078,1705726466591,154.73694719,0.00014746,2]
[312268079,1705726466956,3990.6046696,0.0001,2]
[312268083,1705726482596,154.73694719,0.00014746,2]
[312268085,1705726504604,154.73694719,0.00014746,2]
[312268086,1705726526604,154.73694719,0.00014737,2]
[312268087,1705726546599,154.73694719,0.00014737,2]
[312268089,1705726564621,154.7215013,0.00014733,2]
[312268091,1705726582610,154.7215013,0.00014733,2]
[312268093,1705726596620,154.7215013,0.00014733,2]
[312268094,1705726607151,24900.0,0.00015365,2]
[312268095,1705726618607,154.7215013,0.00014733,2]
[312268096,1705726634611,154.7215013,0.00014726,2]
[312268097,1705726652612,154.7215013,0.00014726,2]
[312268098,1705726666607,154.7215013,0.00014721,2]
[312268099,1705726684609,154.7215013,0.00014726,2]
[312268100,1705726704619,154.7215013,0.00014714,2]
[312268101,1705726724618,154.7215013,0.00014714,2]
[312268102,1705726746621,154.7215013,0.00014708,2]
[312268103,1705726766622,154.7215013,0.00014707,2]
[312268104,1705726782633,154.7215013,0.00014707,2]
[312268105,1705726804622,154.7215013,0.00014707,2]
[312268106,1705726820638,154.7215013,0.00016106,3]
[312268107,1705726840630,154.7215013,0.00014698,2]
[312268108,1705726862627,154.7215013,0.00014698,2]
[312268109,1705726884636,154.7215013,0.00014695,2]
[312268110,1705726900633,154.7215013,0.00014695,2]
[312268111,1705726918639,154.7215013,0.00014695,2]
[312268112,1705726934645,154.7215013,0.00014695,2]
[312268113,1705726958648,154.7215013,0.0001469,2]
[312268114,1705726974667,154.7215013,0.0001469,2]
[312268115,1705726994660,154.7215013,0.0001469,2]
[312268116,1705727012652,154.7215013,0.00014679,2]
[312268117,1705727027813,24900.0,0.00015313,2]
[312268118,1705727030653,154.7215013,0.00014679,2]